[Event "Early-Titled-Tuesday-Blitz-December-26-2023"]
[Site "Chess.com"]
[Date "2023.12.26"]
[Round "5"]
[White "AnaKuchava"]
[Black "Matols"]
[Result "0-1"]
[WhiteElo "2204"]
[BlackElo "2385"]
[TimeControl "180+1"]
[EndTime "8:55:46 PST"]
[Termination "Matols won on time"]

1. d4 {[%clk 0:02:57.1]} 1... d5 {[%clk 0:02:58.4]} 2. Nf3 {[%clk 0:02:50.6]}
2... Nf6 {[%clk 0:02:57.9]} 3. c4 {[%clk 0:02:49.5]} 3... e6 {[%clk 0:02:58]} 4.
Nc3 {[%clk 0:02:44.5]} 4... a6 {[%clk 0:02:57.3]} 5. e3 {[%clk 0:02:41.8]} 5...
dxc4 {[%clk 0:02:52.9]} 6. Bxc4 {[%clk 0:02:42.7]} 6... c5 {[%clk 0:02:53.1]} 7.
O-O {[%clk 0:02:36.9]} 7... Nc6 {[%clk 0:02:50.7]} 8. Qe2 {[%clk 0:02:22]} 8...
cxd4 {[%clk 0:02:49.3]} 9. Rd1 {[%clk 0:02:21.5]} 9... Be7 {[%clk 0:02:48.2]}
10. exd4 {[%clk 0:02:20.5]} 10... O-O {[%clk 0:02:46.9]} 11. Bg5 {[%clk
0:02:17.6]} 11... b5 {[%clk 0:02:37.3]} 12. Bb3 {[%clk 0:02:08.1]} 12... Nd5
{[%clk 0:02:13.9]} 13. Nxd5 {[%clk 0:01:50.5]} 13... Bxg5 {[%clk 0:02:10.6]} 14.
Nxg5 {[%clk 0:01:41.6]} 14... Qxg5 {[%clk 0:02:11.5]} 15. Nb6 {[%clk 0:01:41.4]}
15... Bb7 {[%clk 0:01:57.1]} 16. d5 {[%clk 0:01:04.5]} 16... Nb4 {[%clk
0:01:29.3]} 17. Nxa8 {[%clk 0:00:56.6]} 17... Bxa8 {[%clk 0:01:30.2]} 18. Qd2
{[%clk 0:00:35.7]} 18... Qxd2 {[%clk 0:01:10.9]} 19. Rxd2 {[%clk 0:00:36.6]}
19... Nxd5 {[%clk 0:01:10.9]} 20. Rc1 {[%clk 0:00:33]} 20... g6 {[%clk
0:01:06.3]} 21. a3 {[%clk 0:00:27.4]} 21... Kg7 {[%clk 0:01:04.6]} 22. Bxd5
{[%clk 0:00:22.5]} 22... Bxd5 {[%clk 0:01:03.7]} 23. Rc7 {[%clk 0:00:23.1]}
23... h5 {[%clk 0:00:56.4]} 24. f3 {[%clk 0:00:17.6]} 24... a5 {[%clk
0:00:52.7]} 25. Ra7 {[%clk 0:00:12.9]} 25... a4 {[%clk 0:00:51.8]} 26. Rc7
{[%clk 0:00:09.4]} 26... h4 {[%clk 0:00:48.8]} 27. Kf2 {[%clk 0:00:07.9]} 27...
g5 {[%clk 0:00:46.7]} 28. Rd4 {[%clk 0:00:07.2]} 28... Kf6 {[%clk 0:00:44.6]}
29. f4 {[%clk 0:00:06.7]} 29... g4 {[%clk 0:00:43.4]} 30. Rc5 {[%clk 0:00:05.2]}
30... Rb8 {[%clk 0:00:41.9]} 31. g3 {[%clk 0:00:03.2]} 31... h3 {[%clk 0:00:41]}
32. Rd2 {[%clk 0:00:02.9]} 32... b4 {[%clk 0:00:39.9]} 33. axb4 {[%clk
0:00:02.2]} 33... Rxb4 {[%clk 0:00:40.8]} 34. Ke3 {[%clk 0:00:02.7]} 34... Rb3+
{[%clk 0:00:36.8]} 35. Kf2 {[%clk 0:00:02.5]} 35... a3 {[%clk 0:00:33.7]} 36.
bxa3 {[%clk 0:00:01.8]} 36... Rxa3 {[%clk 0:00:34.6]} 37. Rc7 {[%clk 0:00:02.3]}
37... Ra1 {[%clk 0:00:33.8]} 38. Rc8 {[%clk 0:00:01.8]} 38... Rh1 {[%clk
0:00:33.5]} 39. Ke3 {[%clk 0:00:02.4]} 39... Rg1 {[%clk 0:00:30.3]} 40. Rg8
{[%clk 0:00:02.3]} 40... Rg2 {[%clk 0:00:30.2]} 0-1

[Event "Early-Titled-Tuesday-Blitz-December-26-2023"]
[Site "Chess.com"]
[Date "2023.12.26"]
[Round "5"]
[White "Yushko_Olga"]
[Black "Kotofeyca"]
[Result "0-1"]
[WhiteElo "2171"]
[BlackElo "2427"]
[TimeControl "180+1"]
[EndTime "8:55:51 PST"]
[Termination "Kotofeyca won by resignation"]

1. d4 {[%clk 0:02:59.9]} 1... d5 {[%clk 0:02:57.9]} 2. c4 {[%clk 0:02:59.8]}
2... c6 {[%clk 0:02:58.4]} 3. cxd5 {[%clk 0:02:59.9]} 3... cxd5 {[%clk
0:02:59.3]} 4. Nc3 {[%clk 0:03:00]} 4... Nf6 {[%clk 0:03:00.1]} 5. Nf3 {[%clk
0:03:00.8]} 5... Nc6 {[%clk 0:03:00.7]} 6. Bf4 {[%clk 0:03:01]} 6... a6 {[%clk
0:03:01.3]} 7. e3 {[%clk 0:03:01.7]} 7... Bg4 {[%clk 0:03:01.8]} 8. Bd3 {[%clk
0:03:01.8]} 8... e6 {[%clk 0:03:02.1]} 9. O-O {[%clk 0:03:02]} 9... Bd6 {[%clk
0:03:02.2]} 10. Bg5 {[%clk 0:03:02.1]} 10... O-O {[%clk 0:03:01.4]} 11. Rc1
{[%clk 0:03:01.7]} 11... Rc8 {[%clk 0:03:01]} 12. Bb1 {[%clk 0:03:01.4]} 12...
Bh5 {[%clk 0:02:57.3]} 13. Qc2 {[%clk 0:02:56.6]} 13... Bg6 {[%clk 0:02:56.4]}
14. Qb3 {[%clk 0:02:56.4]} 14... Na5 {[%clk 0:02:55.2]} 15. Qd1 {[%clk
0:02:49.1]} 15... Nc4 {[%clk 0:02:50.1]} 16. Bxg6 {[%clk 0:02:48.7]} 16... hxg6
{[%clk 0:02:51]} 17. b3 {[%clk 0:02:43.3]} 17... Na5 {[%clk 0:02:37.4]} 18. Na4
{[%clk 0:02:26.2]} 18... Ba3 {[%clk 0:02:27.3]} 19. Rxc8 {[%clk 0:02:21]} 19...
Qxc8 {[%clk 0:02:28.2]} 20. Bxf6 {[%clk 0:02:07.7]} 20... gxf6 {[%clk
0:02:27.2]} 21. Qd2 {[%clk 0:02:06.5]} 21... Qc7 {[%clk 0:02:22.6]} 22. Nc5
{[%clk 0:01:59.1]} 22... Bxc5 {[%clk 0:02:14.1]} 23. dxc5 {[%clk 0:01:59.1]}
23... Kg7 {[%clk 0:01:45.8]} 24. Rc1 {[%clk 0:01:55]} 24... Rh8 {[%clk
0:01:39.3]} 25. Qb4 {[%clk 0:01:40.4]} 25... Nc6 {[%clk 0:01:30.4]} 26. Qg4
{[%clk 0:01:12]} 26... Ne5 {[%clk 0:01:20.9]} 27. Nxe5 {[%clk 0:01:09.8]} 27...
Qxe5 {[%clk 0:01:21.8]} 28. h3 {[%clk 0:00:49]} 28... Qb2 {[%clk 0:01:21.5]} 29.
Qd1 {[%clk 0:00:45.6]} 29... Qxa2 {[%clk 0:01:19.4]} 30. b4 {[%clk 0:00:41.5]}
30... Rh4 {[%clk 0:01:15.2]} 31. f4 {[%clk 0:00:32.9]} 31... Qa3 {[%clk
0:01:11.1]} 32. Kf2 {[%clk 0:00:31.9]} 32... Qxb4 {[%clk 0:01:05.4]} 33. Qc2
{[%clk 0:00:27.6]} 33... d4 {[%clk 0:00:54.8]} 34. Kg3 {[%clk 0:00:26]} 34...
dxe3 {[%clk 0:00:26.8]} 35. Kxh4 {[%clk 0:00:09.7]} 35... Qxf4+ {[%clk
0:00:26.5]} 36. g4 {[%clk 0:00:10.5]} 36... g5+ {[%clk 0:00:25.7]} 37. Kh5
{[%clk 0:00:10.7]} 37... Qg3 {[%clk 0:00:26.6]} 0-1

[Event "Early-Titled-Tuesday-Blitz-December-26-2023"]
[Site "Chess.com"]
[Date "2023.12.26"]
[Round "5"]
[White "Blackwhite017"]
[Black "Barbix1"]
[Result "0-1"]
[WhiteElo "2083"]
[BlackElo "2279"]
[TimeControl "180+1"]
[EndTime "8:55:51 PST"]
[Termination "Barbix1 won on time"]

1. e4 {[%clk 0:03:00.9]} 1... c5 {[%clk 0:02:58.3]} 2. Nf3 {[%clk 0:02:59.5]}
2... g6 {[%clk 0:02:57.7]} 3. d4 {[%clk 0:02:58.7]} 3... cxd4 {[%clk 0:02:57.2]}
4. Nxd4 {[%clk 0:02:59.6]} 4... Bg7 {[%clk 0:02:48.5]} 5. Nc3 {[%clk 0:02:59]}
5... Nc6 {[%clk 0:02:48.7]} 6. Be3 {[%clk 0:02:58.9]} 6... Nf6 {[%clk
0:02:44.9]} 7. Nxc6 {[%clk 0:02:58.1]} 7... dxc6 {[%clk 0:02:24.4]} 8. Qxd8+
{[%clk 0:02:56.9]} 8... Kxd8 {[%clk 0:02:25.3]} 9. O-O-O+ {[%clk 0:02:57.3]}
9... Ke8 {[%clk 0:02:19.5]} 10. Bc4 {[%clk 0:02:53.6]} 10... Ng4 {[%clk
0:02:07.9]} 11. Rd3 {[%clk 0:02:16.2]} 11... Nxe3 {[%clk 0:02:04.8]} 12. fxe3
{[%clk 0:02:14.4]} 12... e6 {[%clk 0:01:25.2]} 13. Rhd1 {[%clk 0:02:05.1]} 13...
Ke7 {[%clk 0:01:25.3]} 14. a4 {[%clk 0:01:57.1]} 14... b6 {[%clk 0:01:14.2]} 15.
Ne2 {[%clk 0:01:32.8]} 15... a5 {[%clk 0:00:42]} 16. c3 {[%clk 0:01:29.2]} 16...
Ra7 {[%clk 0:00:38.3]} 17. Rd6 {[%clk 0:01:25.6]} 17... Rc7 {[%clk 0:00:32]} 18.
Kc2 {[%clk 0:00:44.9]} 18... Bb7 {[%clk 0:00:18.3]} 19. g4 {[%clk 0:00:33.5]}
19... Be5 {[%clk 0:00:17.8]} 20. R6d2 {[%clk 0:00:27]} 20... Bxh2 {[%clk
0:00:17.7]} 21. Nf4 {[%clk 0:00:25.9]} 21... Bxf4 {[%clk 0:00:17.5]} 22. exf4
{[%clk 0:00:26.8]} 22... h5 {[%clk 0:00:11.4]} 23. g5 {[%clk 0:00:11]} 23... b5
{[%clk 0:00:10.9]} 24. Bb3 {[%clk 0:00:08.5]} 24... c5 {[%clk 0:00:07.8]} 25. e5
{[%clk 0:00:05.3]} 25... c4 {[%clk 0:00:05.9]} 26. Ba2 {[%clk 0:00:04.6]} 26...
b4 {[%clk 0:00:05.3]} 27. cxb4 {[%clk 0:00:02.1]} 27... axb4 {[%clk 0:00:06.2]}
28. Kc1 {[%clk 0:00:02.6]} 28... b3 {[%clk 0:00:04.1]} 29. Bb1 {[%clk
0:00:02.2]} 29... Bc6 {[%clk 0:00:03.7]} 0-1

[Event "Early-Titled-Tuesday-Blitz-December-26-2023"]
[Site "Chess.com"]
[Date "2023.12.26"]
[Round "5"]
[White "R2D2PTY"]
[Black "JohnWhite1952"]
[Result "1-0"]
[WhiteElo "2244"]
[BlackElo "1999"]
[TimeControl "180+1"]
[EndTime "8:55:57 PST"]
[Termination "R2D2PTY won on time"]

1. e4 {[%clk 0:02:57.4]} 1... c5 {[%clk 0:02:58.7]} 2. Nf3 {[%clk 0:02:56.6]}
2... e6 {[%clk 0:02:57.7]} 3. g3 {[%clk 0:02:56.2]} 3... Nc6 {[%clk 0:02:56.2]}
4. Bg2 {[%clk 0:02:54.8]} 4... d6 {[%clk 0:02:53.6]} 5. O-O {[%clk 0:02:53]}
5... Nf6 {[%clk 0:02:52.4]} 6. Re1 {[%clk 0:02:52.5]} 6... Be7 {[%clk
0:02:51.5]} 7. c3 {[%clk 0:02:53.2]} 7... O-O {[%clk 0:02:47.7]} 8. d4 {[%clk
0:02:53.8]} 8... cxd4 {[%clk 0:02:46.1]} 9. cxd4 {[%clk 0:02:54.7]} 9... Qb6
{[%clk 0:02:34.9]} 10. Nc3 {[%clk 0:02:53.7]} 10... a6 {[%clk 0:02:32.1]} 11. b3
{[%clk 0:02:30.8]} 11... e5 {[%clk 0:02:28.8]} 12. dxe5 {[%clk 0:02:15.5]} 12...
dxe5 {[%clk 0:02:25]} 13. Bb2 {[%clk 0:02:16.1]} 13... Rd8 {[%clk 0:02:10.2]}
14. Qe2 {[%clk 0:02:15.4]} 14... Bg4 {[%clk 0:02:07.9]} 15. h3 {[%clk
0:02:09.2]} 15... Bxf3 {[%clk 0:01:58.7]} 16. Qxf3 {[%clk 0:02:10.1]} 16... Nd4
{[%clk 0:01:57.5]} 17. Qe3 {[%clk 0:02:04.6]} 17... Qb4 {[%clk 0:01:43.4]} 18.
Rac1 {[%clk 0:01:58.2]} 18... Rac8 {[%clk 0:01:37.5]} 19. Kh1 {[%clk 0:01:47.9]}
19... Bc5 {[%clk 0:01:31.6]} 20. Nd5 {[%clk 0:01:27.6]} 20... Nxd5 {[%clk
0:01:19.2]} 21. exd5 {[%clk 0:01:28.5]} 21... Nc2 {[%clk 0:00:54.8]} 22. Qxe5
{[%clk 0:01:26.1]} 22... Bf8 {[%clk 0:00:38]} 23. Re2 {[%clk 0:00:55.8]} 23...
Na3 {[%clk 0:00:31.8]} 24. Rxc8 {[%clk 0:00:27.3]} 24... Rxc8 {[%clk 0:00:30.5]}
25. Kh2 {[%clk 0:00:27.9]} 25... Nb5 {[%clk 0:00:28.4]} 26. Qf5 {[%clk
0:00:21.5]} 26... Qc5 {[%clk 0:00:23.5]} 27. Be4 {[%clk 0:00:20.2]} 27... g6
{[%clk 0:00:19.9]} 28. Qf6 {[%clk 0:00:19.3]} 28... Nc3 {[%clk 0:00:12.5]} 29.
Rc2 {[%clk 0:00:17.9]} 29... Bg7 {[%clk 0:00:11.3]} 30. Rxc3 {[%clk 0:00:16.2]}
30... Bxf6 {[%clk 0:00:09.5]} 31. Rxc5 {[%clk 0:00:16.9]} 31... Rxc5 {[%clk
0:00:07.8]} 32. Bxf6 {[%clk 0:00:17.6]} 32... Kf8 {[%clk 0:00:06.5]} 33. d6
{[%clk 0:00:16.3]} 33... Ke8 {[%clk 0:00:05.5]} 34. Bxb7 {[%clk 0:00:14.4]}
34... Kd7 {[%clk 0:00:05]} 35. Be7 {[%clk 0:00:15]} 35... Rc2 {[%clk 0:00:03.5]}
36. Bxa6 {[%clk 0:00:14.9]} 36... Rxa2 {[%clk 0:00:03.3]} 37. Bb5+ {[%clk
0:00:14.4]} 1-0

[Event "Early-Titled-Tuesday-Blitz-December-26-2023"]
[Site "Chess.com"]
[Date "2023.12.26"]
[Round "5"]
[White "mariofs"]
[Black "Romn69"]
[Result "1-0"]
[WhiteElo "2204"]
[BlackElo "2371"]
[TimeControl "180+1"]
[EndTime "8:56:00 PST"]
[Termination "mariofs won on time"]

1. d4 {[%clk 0:03:00.9]} 1... Nf6 {[%clk 0:02:43]} 2. Nc3 {[%clk 0:03:00.6]}
2... d5 {[%clk 0:02:42.1]} 3. Bf4 {[%clk 0:02:59.9]} 3... a6 {[%clk 0:02:41.6]}
4. e3 {[%clk 0:02:55.6]} 4... e6 {[%clk 0:02:41]} 5. Nf3 {[%clk 0:02:53.5]} 5...
c5 {[%clk 0:02:41.3]} 6. Ne5 {[%clk 0:02:53]} 6... Nc6 {[%clk 0:02:40.9]} 7. Qf3
{[%clk 0:02:52.2]} 7... Bd6 {[%clk 0:02:40.2]} 8. a3 {[%clk 0:02:39.8]} 8...
cxd4 {[%clk 0:02:30.6]} 9. Nxc6 {[%clk 0:02:36.3]} 9... bxc6 {[%clk 0:02:31.5]}
10. exd4 {[%clk 0:02:35.7]} 10... Bxf4 {[%clk 0:02:15.1]} 11. Qxf4 {[%clk
0:02:36.6]} 11... Qb6 {[%clk 0:01:58]} 12. Rb1 {[%clk 0:02:25.5]} 12... c5
{[%clk 0:01:48.3]} 13. dxc5 {[%clk 0:02:16.8]} 13... Qxc5 {[%clk 0:01:49.2]} 14.
Bd3 {[%clk 0:02:15.7]} 14... O-O {[%clk 0:01:39.4]} 15. O-O {[%clk 0:02:15.1]}
15... Re8 {[%clk 0:01:26.1]} 16. Rfe1 {[%clk 0:02:14.7]} 16... Bd7 {[%clk
0:01:26.2]} 17. Qe5 {[%clk 0:01:44.6]} 17... Rec8 {[%clk 0:01:12.8]} 18. Ne2
{[%clk 0:01:40.3]} 18... Qc7 {[%clk 0:01:03.7]} 19. Nd4 {[%clk 0:01:24.4]} 19...
Qxe5 {[%clk 0:00:58.9]} 20. Rxe5 {[%clk 0:01:25.3]} 20... a5 {[%clk 0:00:57.6]}
21. b3 {[%clk 0:01:14.2]} 21... Rab8 {[%clk 0:00:55.7]} 22. Rbe1 {[%clk
0:01:10.7]} 22... Be8 {[%clk 0:00:49.6]} 23. a4 {[%clk 0:01:07.9]} 23... Nd7
{[%clk 0:00:49.1]} 24. R5e2 {[%clk 0:01:07]} 24... Nc5 {[%clk 0:00:47.5]} 25.
Bb5 {[%clk 0:01:07]} 25... Ne4 {[%clk 0:00:42.8]} 26. Bxe8 {[%clk 0:00:58.7]}
26... Rxe8 {[%clk 0:00:43.7]} 27. Nc6 {[%clk 0:00:42.4]} 27... Ra8 {[%clk
0:00:37]} 28. f3 {[%clk 0:00:39.3]} 28... Nd6 {[%clk 0:00:14.9]} 29. Rd2 {[%clk
0:00:38.9]} 29... Nb7 {[%clk 0:00:06.9]} 30. f4 {[%clk 0:00:33.5]} 30... Rac8
{[%clk 0:00:06.6]} 31. Nd4 {[%clk 0:00:31.3]} 31... Rc5 {[%clk 0:00:05]} 32. Kf2
{[%clk 0:00:25]} 32... Kf8 {[%clk 0:00:04.8]} 33. Ke2 {[%clk 0:00:24.3]} 33...
Nd6 {[%clk 0:00:04.8]} 34. Kd1 {[%clk 0:00:22.6]} 34... Rec8 {[%clk 0:00:04.1]}
35. g3 {[%clk 0:00:19.5]} 35... g6 {[%clk 0:00:03.7]} 36. Kc1 {[%clk 0:00:18]}
36... Ne4 {[%clk 0:00:04]} 37. Rg2 {[%clk 0:00:16.3]} 37... Nc3 {[%clk
0:00:03.5]} 38. Kb2 {[%clk 0:00:15.5]} 38... Ne4 {[%clk 0:00:03.2]} 39. Nb5
{[%clk 0:00:13.4]} 39... Nc3 {[%clk 0:00:01.3]} 40. Nd4 {[%clk 0:00:12.7]} 1-0

[Event "Early-Titled-Tuesday-Blitz-December-26-2023"]
[Site "Chess.com"]
[Date "2023.12.26"]
[Round "5"]
[White "johnmez"]
[Black "JafarTheParrot"]
[Result "0-1"]
[WhiteElo "2285"]
[BlackElo "2514"]
[TimeControl "180+1"]
[EndTime "8:56:06 PST"]
[Termination "JafarTheParrot won on time"]

1. d4 {[%clk 0:03:00.9]} 1... Nf6 {[%clk 0:02:54.8]} 2. c4 {[%clk 0:03:01]} 2...
e5 {[%clk 0:02:54.7]} 3. dxe5 {[%clk 0:02:58.5]} 3... Ng4 {[%clk 0:02:55.3]} 4.
Nf3 {[%clk 0:02:54.7]} 4... Bc5 {[%clk 0:02:55.9]} 5. e3 {[%clk 0:02:52.1]} 5...
Nc6 {[%clk 0:02:56]} 6. Be2 {[%clk 0:02:46.9]} 6... Ngxe5 {[%clk 0:02:52.3]} 7.
O-O {[%clk 0:02:44.5]} 7... d6 {[%clk 0:02:51.6]} 8. Nc3 {[%clk 0:02:44.4]} 8...
a6 {[%clk 0:02:50.5]} 9. b3 {[%clk 0:02:44.4]} 9... Bf5 {[%clk 0:02:38.8]} 10.
Bb2 {[%clk 0:02:44.2]} 10... O-O {[%clk 0:02:38.5]} 11. Nd4 {[%clk 0:02:38.9]}
11... Bg6 {[%clk 0:02:35.1]} 12. Nxc6 {[%clk 0:02:32.7]} 12... bxc6 {[%clk
0:02:33.8]} 13. Rc1 {[%clk 0:02:27.8]} 13... Qe7 {[%clk 0:02:31.3]} 14. Qd2
{[%clk 0:02:20.2]} 14... h6 {[%clk 0:02:26.2]} 15. h3 {[%clk 0:02:15.5]} 15...
a5 {[%clk 0:02:23.6]} 16. Na4 {[%clk 0:02:08.4]} 16... Bb4 {[%clk 0:02:24]} 17.
Bc3 {[%clk 0:02:05.6]} 17... Rab8 {[%clk 0:02:22.6]} 18. f4 {[%clk 0:01:53.3]}
18... Nd7 {[%clk 0:02:19.9]} 19. f5 {[%clk 0:01:52.6]} 19... Bh7 {[%clk
0:02:19]} 20. Bd3 {[%clk 0:01:39.8]} 20... Rfe8 {[%clk 0:02:15.8]} 21. Rce1
{[%clk 0:01:38.1]} 21... Bxc3 {[%clk 0:02:06]} 22. Nxc3 {[%clk 0:01:31.6]} 22...
Qe5 {[%clk 0:02:00.1]} 23. Be4 {[%clk 0:01:20.2]} 23... Rb6 {[%clk 0:01:32]} 24.
Bc2 {[%clk 0:01:14.9]} 24... Nc5 {[%clk 0:01:30.5]} 25. f6 {[%clk 0:01:00.8]}
25... Bxc2 {[%clk 0:01:27.3]} 26. Qxc2 {[%clk 0:00:59.5]} 26... g6 {[%clk
0:01:27.4]} 27. Rf3 {[%clk 0:00:49.4]} 27... Re6 {[%clk 0:01:24.7]} 28. Ref1
{[%clk 0:00:45.6]} 28... Rb8 {[%clk 0:01:23.7]} 29. Ne2 {[%clk 0:00:42.7]} 29...
Qe4 {[%clk 0:01:15.8]} 30. Qb2 {[%clk 0:00:30]} 30... Re5 {[%clk 0:01:09.6]} 31.
Nd4 {[%clk 0:00:26.2]} 31... Ne6 {[%clk 0:01:08.2]} 32. Ne2 {[%clk 0:00:21.7]}
32... Ng5 {[%clk 0:01:06.9]} 33. Rg3 {[%clk 0:00:20.3]} 33... Rbe8 {[%clk
0:01:06.7]} 34. Nf4 {[%clk 0:00:17.3]} 34... Kh7 {[%clk 0:00:59.1]} 35. h4
{[%clk 0:00:17.3]} 35... Ne6 {[%clk 0:00:59.2]} 36. Qe2 {[%clk 0:00:14.4]} 36...
Nxf4 {[%clk 0:00:57.4]} 37. Qg4 {[%clk 0:00:09.6]} 37... Nh5 {[%clk 0:00:53.5]}
38. Qd7 {[%clk 0:00:08.3]} 38... Kg8 {[%clk 0:00:44.3]} 39. Rgf3 {[%clk
0:00:06.2]} 39... Qxh4 {[%clk 0:00:33.9]} 40. Qxc7 {[%clk 0:00:04.8]} 40... R5e6
{[%clk 0:00:31]} 41. Qxc6 {[%clk 0:00:04.6]} 41... Kf8 {[%clk 0:00:27.7]} 42.
Qb6 {[%clk 0:00:03]} 42... Rxf6 {[%clk 0:00:24.7]} 43. Rxf6 {[%clk 0:00:01.9]}
43... Nxf6 {[%clk 0:00:25.6]} 44. Qxd6+ {[%clk 0:00:02]} 44... Kg7 {[%clk
0:00:26.3]} 45. Qd4 {[%clk 0:00:02.1]} 45... Re4 {[%clk 0:00:23.2]} 46. Qc3
{[%clk 0:00:01]} 46... Qg5 {[%clk 0:00:21.1]} 0-1

[Event "Early-Titled-Tuesday-Blitz-December-26-2023"]
[Site "Chess.com"]
[Date "2023.12.26"]
[Round "5"]
[White "TitarovVasiliYouTube"]
[Black "pirulillo"]
[Result "1-0"]
[WhiteElo "2546"]
[BlackElo "2285"]
[TimeControl "180+1"]
[EndTime "8:56:10 PST"]
[Termination "TitarovVasiliYouTube won on time"]

1. e4 {[%clk 0:02:48.9]} 1... c5 {[%clk 0:02:59.4]} 2. Nf3 {[%clk 0:02:48.1]}
2... e6 {[%clk 0:02:59.2]} 3. b3 {[%clk 0:02:43.9]} 3... d5 {[%clk 0:02:57.3]}
4. Bb5+ {[%clk 0:02:40.3]} 4... Bd7 {[%clk 0:02:56.7]} 5. Bxd7+ {[%clk
0:02:39.3]} 5... Qxd7 {[%clk 0:02:57.6]} 6. exd5 {[%clk 0:02:37.9]} 6... exd5
{[%clk 0:02:58.5]} 7. O-O {[%clk 0:02:37.4]} 7... Nc6 {[%clk 0:02:55.5]} 8. d4
{[%clk 0:02:36.2]} 8... O-O-O {[%clk 0:02:40.2]} 9. Bb2 {[%clk 0:02:29.9]} 9...
Nf6 {[%clk 0:02:37.5]} 10. Nbd2 {[%clk 0:02:23.4]} 10... Kb8 {[%clk 0:02:11.9]}
11. Re1 {[%clk 0:02:20.2]} 11... Bd6 {[%clk 0:01:58.7]} 12. dxc5 {[%clk
0:02:19.5]} 12... Bxc5 {[%clk 0:01:57.4]} 13. Ne5 {[%clk 0:02:19.6]} 13... Nxe5
{[%clk 0:01:56.3]} 14. Bxe5+ {[%clk 0:02:20.5]} 14... Ka8 {[%clk 0:01:56]} 15.
Bxf6 {[%clk 0:01:15.2]} 15... gxf6 {[%clk 0:01:54.3]} 16. Qf3 {[%clk 0:01:11.6]}
16... Rhg8 {[%clk 0:01:42.4]} 17. g3 {[%clk 0:01:10.4]} 17... f5 {[%clk
0:01:39.5]} 18. Rad1 {[%clk 0:01:06.4]} 18... h5 {[%clk 0:01:10.2]} 19. Re5
{[%clk 0:01:00.5]} 19... h4 {[%clk 0:00:55.3]} 20. Nf1 {[%clk 0:00:59.1]} 20...
hxg3 {[%clk 0:00:52.7]} 21. hxg3 {[%clk 0:00:59.8]} 21... f4 {[%clk 0:00:49.3]}
22. Rdxd5 {[%clk 0:00:52.5]} 22... Bxf2+ {[%clk 0:00:31.3]} 23. Qxf2 {[%clk
0:00:49.5]} 23... fxg3 {[%clk 0:00:29.8]} 24. Qg2 {[%clk 0:00:46.7]} 24... Qc7
{[%clk 0:00:23.3]} 25. Rxd8+ {[%clk 0:00:46.2]} 25... Rxd8 {[%clk 0:00:24.2]}
26. Re3 {[%clk 0:00:40.5]} 26... f5 {[%clk 0:00:21.4]} 27. Rxg3 {[%clk
0:00:39.7]} 27... f4 {[%clk 0:00:20.1]} 28. Rg5 {[%clk 0:00:11]} 28... a6 {[%clk
0:00:08.8]} 29. Rg7 {[%clk 0:00:09.8]} 29... Qb6+ {[%clk 0:00:07.8]} 30. Qf2
{[%clk 0:00:09.7]} 30... Qf6 {[%clk 0:00:07.9]} 31. Rg4 {[%clk 0:00:04.5]} 31...
Rf8 {[%clk 0:00:06.9]} 32. Qf3 {[%clk 0:00:04.4]} 32... Qd4+ {[%clk 0:00:06.5]}
33. Qf2 {[%clk 0:00:04.4]} 33... Qe4 {[%clk 0:00:06.7]} 34. Nh2 {[%clk
0:00:03.8]} 34... Rd8 {[%clk 0:00:01.3]} 35. Nf1 {[%clk 0:00:04]} 35... Rd1
{[%clk 0:00:01.6]} 36. Rg8+ {[%clk 0:00:03.1]} 1-0

[Event "Early-Titled-Tuesday-Blitz-December-26-2023"]
[Site "Chess.com"]
[Date "2023.12.26"]
[Round "5"]
[White "GeorgMeier"]
[Black "sergoy"]
[Result "1-0"]
[WhiteElo "3047"]
[BlackElo "2943"]
[TimeControl "180+1"]
[EndTime "8:56:11 PST"]
[Termination "GeorgMeier won by resignation"]

1. Nf3 {[%clk 0:02:57.6]} 1... d5 {[%clk 0:02:59.5]} 2. g3 {[%clk 0:02:57.5]}
2... g6 {[%clk 0:03:00.2]} 3. Bg2 {[%clk 0:02:57.6]} 3... Bg7 {[%clk 0:03:00.8]}
4. d4 {[%clk 0:02:58.2]} 4... Nf6 {[%clk 0:03:00.9]} 5. O-O {[%clk 0:02:58]}
5... O-O {[%clk 0:03:01.5]} 6. c4 {[%clk 0:02:58.7]} 6... c6 {[%clk 0:03:02.1]}
7. cxd5 {[%clk 0:02:58.2]} 7... cxd5 {[%clk 0:03:02.5]} 8. Nc3 {[%clk
0:02:58.9]} 8... Nc6 {[%clk 0:03:02.7]} 9. Ne5 {[%clk 0:02:59.5]} 9... Ng4
{[%clk 0:02:47.4]} 10. Nxd5 {[%clk 0:02:54.8]} 10... Ngxe5 {[%clk 0:02:37.1]}
11. dxe5 {[%clk 0:02:54.4]} 11... Nxe5 {[%clk 0:02:34.1]} 12. Bg5 {[%clk
0:02:53.2]} 12... Nc6 {[%clk 0:02:21]} 13. Qd2 {[%clk 0:02:51.6]} 13... Be6
{[%clk 0:02:15.2]} 14. Rfd1 {[%clk 0:02:51.3]} 14... Bxd5 {[%clk 0:02:06.9]} 15.
Bxd5 {[%clk 0:02:46.2]} 15... Qb6 {[%clk 0:02:07.3]} 16. Bxc6 {[%clk 0:02:29]}
16... bxc6 {[%clk 0:02:00.7]} 17. Bxe7 {[%clk 0:02:19.8]} 17... Rfe8 {[%clk
0:01:57.8]} 18. Ba3 {[%clk 0:02:15.4]} 18... h5 {[%clk 0:01:49.1]} 19. h4 {[%clk
0:01:55.2]} 19... Re4 {[%clk 0:01:47.4]} 20. Rac1 {[%clk 0:01:46.6]} 20... Rae8
{[%clk 0:01:36]} 21. e3 {[%clk 0:01:46]} 21... g5 {[%clk 0:00:49.1]} 22. hxg5
{[%clk 0:01:33]} 22... h4 {[%clk 0:00:49.4]} 23. Bd6 {[%clk 0:01:27.9]} 23...
Qb5 {[%clk 0:00:45]} 24. Rc5 {[%clk 0:00:56.1]} 24... Qb7 {[%clk 0:00:31.3]} 25.
gxh4 {[%clk 0:00:30.4]} 25... Rd8 {[%clk 0:00:30.7]} 26. Qc2 {[%clk 0:00:26.1]}
26... Rxh4 {[%clk 0:00:09.4]} 27. Bg3 {[%clk 0:00:25.7]} 27... Re8 {[%clk
0:00:09.9]} 28. Bxh4 {[%clk 0:00:24.9]} 28... Qc8 {[%clk 0:00:05.8]} 29. Bg3
{[%clk 0:00:22.4]} 29... Qh3 {[%clk 0:00:06]} 30. Qe2 {[%clk 0:00:16.1]} 30...
Re4 {[%clk 0:00:03.3]} 31. Rc4 {[%clk 0:00:15.1]} 31... Re6 {[%clk 0:00:03.3]}
32. Qg4 {[%clk 0:00:14.2]} 32... Qh7 {[%clk 0:00:03.2]} 33. Rd8+ {[%clk
0:00:14]} 33... Bf8 {[%clk 0:00:03.9]} 34. Kg2 {[%clk 0:00:12.8]} 34... Qb1
{[%clk 0:00:03.7]} 35. Rf4 {[%clk 0:00:12]} 35... Qg6 {[%clk 0:00:03.8]} 36. Qf5
{[%clk 0:00:11.6]} 36... Qg7 {[%clk 0:00:03.9]} 37. Qxe6 {[%clk 0:00:11.1]}
37... fxe6 {[%clk 0:00:04.8]} 38. Rdxf8+ {[%clk 0:00:11.2]} 38... Qxf8 {[%clk
0:00:05.7]} 39. Rxf8+ {[%clk 0:00:11]} 39... Kxf8 {[%clk 0:00:06.6]} 40. Kf3
{[%clk 0:00:11.3]} 40... Kf7 {[%clk 0:00:06.9]} 41. Ke4 {[%clk 0:00:11.9]} 41...
Kg6 {[%clk 0:00:07.8]} 42. f4 {[%clk 0:00:11.8]} 42... Kf7 {[%clk 0:00:08.5]}
43. Ke5 {[%clk 0:00:12.3]} 43... Ke7 {[%clk 0:00:09.4]} 44. Bh4 {[%clk
0:00:12.2]} 44... c5 {[%clk 0:00:10.3]} 45. g6+ {[%clk 0:00:12.6]} 45... Kf8
{[%clk 0:00:11.2]} 46. Kxe6 {[%clk 0:00:13]} 46... Kg7 {[%clk 0:00:12.1]} 47. f5
{[%clk 0:00:13.6]} 47... Kh6 {[%clk 0:00:12.6]} 48. Bf6 {[%clk 0:00:14.4]} 48...
Kh5 {[%clk 0:00:12.5]} 49. g7 {[%clk 0:00:14]} 49... Kg4 {[%clk 0:00:13.4]} 50.
g8=Q+ {[%clk 0:00:14.3]} 50... Kf3 {[%clk 0:00:14.3]} 51. Qg5 {[%clk 0:00:14.5]}
1-0